[Event "Open NK Rapid 2025 bord 26-50"]
[Site "Helmond, Netherlands"]
[Date "2025.05.03"]
[Round "9.12"]
[White "Jara Segovia, Jesus Javier"]
[Black "Teianu, Maxim"]
[Result "0-1"]
[TimeControl "15 min +5 sec increment"]
[WhiteFideId "3925439"]
[BlackFideId "40101967"]
[WhiteElo "1909"]
[BlackElo "1672"]

1. e4 {[%clk 00:15:07]} {[%emt 00:00:02]} e6 {[%clk 00:15:08]} 2. Nf3 {[%clk
00:15:10]} {[%emt 00:00:02]} d5 {[%clk 00:15:11]} {[%emt 00:00:02]} 3. e5
{[%clk 00:15:14]} {[%emt 00:00:01]} c5 {[%clk 00:15:14]} {[%emt 00:00:02]} 4.
b4 {[%clk 00:15:18]} {[%emt 00:00:01]} c4 {[%clk 00:15:17]} {[%emt 00:00:02]} 5.
c3 {[%clk 00:15:21]} {[%emt 00:00:02]} a5 {[%clk 00:15:16]} {[%emt 00:00:05]} 6.
bxa5 {[%clk 00:15:19]} {[%emt 00:00:08]} Rxa5 {[%clk 00:15:04]} {[%emt
00:00:17]} 7. d4 {[%clk 00:15:22]} {[%emt 00:00:01]} Nc6 {[%clk 00:13:19]}
{[%emt 00:01:51]} 8. Be2 {[%clk 00:15:24]} {[%emt 00:00:02]} Nge7 {[%clk
00:13:14]} {[%emt 00:00:11]} 9. O-O {[%clk 00:15:26]} {[%emt 00:00:03]} Ng6
{[%clk 00:13:12]} {[%emt 00:00:07]} 10. Nfd2 {[%clk 00:14:29]} {[%emt
00:01:01]} Be7 {[%clk 00:12:48]} {[%emt 00:00:29]} 11. f4 {[%clk 00:14:28]}
{[%emt 00:00:06]} O-O {[%clk 00:12:46]} {[%emt 00:00:08]} 12. Bh5 {[%clk
00:14:21]} {[%emt 00:00:11]} b5 {[%clk 00:11:50]} {[%emt 00:01:01]} 13. Nf3
{[%clk 00:13:41]} {[%emt 00:00:44]} b4 {[%clk 00:11:06]} {[%emt 00:00:50]} 14.
cxb4 {[%clk 00:13:44]} {[%emt 00:00:02]} Nxb4 {[%clk 00:11:06]} {[%emt
00:00:05]} 15. Bd2 {[%clk 00:13:46]} {[%emt 00:00:02]} Ra8 {[%clk 00:10:24]}
{[%emt 00:00:48]} 16. Nc3 {[%clk 00:13:50]} {[%emt 00:00:02]} Nd3 {[%clk
00:10:23]} {[%emt 00:00:06]} 17. Ne1 {[%clk 00:13:47]} {[%emt 00:00:06]} Nxe1
{[%clk 00:10:00]} {[%emt 00:00:29]} 18. Bxe1 {[%clk 00:13:48]} {[%emt
00:00:04]} Bd7 {[%clk 00:09:26]} {[%emt 00:00:39]} 19. Qc2 {[%clk 00:13:23]}
{[%emt 00:00:30]} Qb6 {[%clk 00:09:04]} {[%emt 00:00:28]} 20. Ne2 {[%clk
00:13:25]} {[%emt 00:00:01]} Rfb8 {[%clk 00:09:03]} {[%emt 00:00:07]} 21. Bc3
{[%clk 00:13:22]} {[%emt 00:00:08]} Nf8 {[%clk 00:08:27]} {[%emt 00:00:41]} 22.
Rfb1 {[%clk 00:13:10]} {[%emt 00:00:17]} Qa7 {[%clk 00:08:18]} {[%emt
00:00:15]} 23. Bg4 {[%clk 00:12:27]} {[%emt 00:00:47]} Rxb1+ {[%clk 00:07:50]}
{[%emt 00:00:33]} 24. Qxb1 {[%clk 00:12:29]} {[%emt 00:00:03]} Rb8 {[%clk
00:07:46]} {[%emt 00:00:10]} 25. Qc2 {[%clk 00:12:32]} {[%emt 00:00:02]} Ba4
{[%clk 00:07:47]} {[%emt 00:00:04]} 26. Qd2 {[%clk 00:12:34]} {[%emt 00:00:02]}
g6 {[%clk 00:07:33]} {[%emt 00:00:19]} 27. h3 {[%clk 00:12:36]} {[%emt
00:00:02]} Nd7 {[%clk 00:07:17]} {[%emt 00:00:22]} 28. Bf3 {[%clk 00:12:33]}
{[%emt 00:00:07]} Nb6 {[%clk 00:07:19]} {[%emt 00:00:05]} 29. g4 {[%clk
00:11:45]} {[%emt 00:00:52]} Bd7 {[%clk 00:07:16]} {[%emt 00:00:08]} 30. Rb1
{[%clk 00:11:35]} {[%emt 00:00:16]} Na4 {[%clk 00:07:12]} {[%emt 00:00:09]} 31.
Rxb8+ {[%clk 00:11:37]} {[%emt 00:00:03]} Qxb8 {[%clk 00:07:15]} {[%emt
00:00:02]} 32. Kg2 {[%clk 00:11:22]} {[%emt 00:00:19]} Nxc3 {[%clk 00:07:12]}
{[%emt 00:00:08]} 33. Qxc3 {[%clk 00:11:21]} {[%emt 00:00:06]} Qb5 {[%clk
00:07:06]} {[%emt 00:00:11]} 34. Qc2 {[%clk 00:10:53]} {[%emt 00:00:34]} Bd8
{[%clk 00:06:42]} {[%emt 00:00:29]} 35. f5 {[%clk 00:10:47]} {[%emt 00:00:10]}
exf5 {[%clk 00:06:33]} {[%emt 00:00:14]} 36. Nc3 {[%clk 00:10:48]} {[%emt
00:00:04]} Qb6 {[%clk 00:06:27]} {[%emt 00:00:11]} 37. Qd2 {[%clk 00:09:40]}
{[%emt 00:01:13]} fxg4 {[%clk 00:06:10]} {[%emt 00:00:22]} 38. hxg4 {[%clk
00:09:29]} {[%emt 00:00:16]} Qa5 {[%clk 00:05:29]} {[%emt 00:00:46]} 39. Bxd5
{[%clk 00:08:57]} {[%emt 00:00:37]} Be6 {[%clk 00:03:46]} {[%emt 00:01:48]} 40.
Bf3 {[%clk 00:08:46]} {[%emt 00:00:15]} Be7 {[%clk 00:03:37]} {[%emt 00:00:15]}
41. d5 {[%clk 00:08:39]} {[%emt 00:00:12]} Bxg4 {[%clk 00:03:06]} {[%emt
00:00:36]} 42. Bxg4 {[%clk 00:08:19]} {[%emt 00:00:25]} Bb4 {[%clk 00:03:10]}
43. e6 {[%clk 00:08:16]} {[%emt 00:00:08]} Bxc3 {[%clk 00:03:04]} {[%emt
00:00:11]} 44. exf7+ {[%clk 00:07:35]} {[%emt 00:00:46]} Kxf7 {[%clk 00:03:00]}
{[%emt 00:00:09]} 45. Be6+ {[%clk 00:07:36]} {[%emt 00:00:05]} Kg7 {[%clk
00:02:53]} {[%emt 00:00:12]} 46. Qe2 {[%clk 00:06:06]} {[%emt 00:01:33]} Qc5
{[%clk 00:02:13]} {[%emt 00:00:47]} 47. a4 {[%clk 00:01:37]} {[%emt 00:04:34]}
Bf6 {[%clk 00:02:02]} {[%emt 00:00:15]} 48. a5 {[%clk 00:01:40]} {[%emt
00:00:02]} c3 {[%clk 00:01:48]} {[%emt 00:00:20]} 49. Qc2 {[%clk 00:00:44]}
{[%emt 00:01:01]} Qxa5 {[%clk 00:01:31]} {[%emt 00:00:21]} 50. Kf3 {[%clk
00:00:44]} {[%emt 00:00:05]} Qb4 {[%clk 00:01:25]} {[%emt 00:00:12]} 51. Bd7
{[%clk 00:00:37]} {[%emt 00:00:12]} Be5 {[%clk 00:01:19]} {[%emt 00:00:10]} 52.
Ba4 {[%emt 00:00:45]} 0-1

[Event "Open NK Rapid 2025 bord 26-50"]
[Site "Helmond, Netherlands"]
[Date "2025.05.03"]
[Round "9.13"]
[White "Van Wamel, Gijs"]
[Black "Cayonlu, Arda"]
[Result "0-1"]
[TimeControl "15 min +5 sec increment"]
[WhiteFideId "40102165"]
[BlackFideId "6339786"]
[WhiteElo "1713"]
[BlackElo "1885"]

1. e4 {[%clk 00:15:09]} e5 {[%clk 00:15:10]} {[%emt 00:00:01]} 2. Nc3 {[%clk
00:15:11]} {[%emt 00:00:02]} Nc6 {[%clk 00:14:45]} {[%emt 00:00:28]} 3. d3
{[%clk 00:15:02]} {[%emt 00:00:15]} Bb4 {[%clk 00:14:24]} {[%emt 00:00:25]} 4.
Nge2 {[%clk 00:15:01]} {[%emt 00:00:06]} Nf6 {[%clk 00:14:25]} {[%emt
00:00:04]} 5. a3 {[%clk 00:14:45]} {[%emt 00:00:22]} Ba5 {[%clk 00:14:19]}
{[%emt 00:00:10]} 6. Be3 {[%clk 00:14:41]} {[%emt 00:00:09]} d5 {[%clk
00:14:15]} {[%emt 00:00:09]} 7. exd5 {[%clk 00:14:29]} {[%emt 00:00:17]} Nxd5
{[%clk 00:14:17]} {[%emt 00:00:03]} 8. Bd2 {[%clk 00:14:33]} {[%emt 00:00:01]}
O-O {[%clk 00:14:12]} {[%emt 00:00:09]} 9. Nxd5 {[%clk 00:14:24]} {[%emt
00:00:15]} Bxd2+ {[%clk 00:14:14]} {[%emt 00:00:03]} 10. Qxd2 {[%clk 00:14:27]}
{[%emt 00:00:02]} Qxd5 {[%clk 00:14:16]} {[%emt 00:00:02]} 11. Nc3 {[%clk
00:14:17]} {[%emt 00:00:16]} Qe6 {[%clk 00:13:24]} {[%emt 00:00:57]} 12. g3
{[%clk 00:14:01]} {[%emt 00:00:20]} Nd4 {[%clk 00:13:18]} {[%emt 00:00:12]} 13.
Bg2 {[%clk 00:14:02]} {[%emt 00:00:04]} Bd7 {[%clk 00:13:19]} {[%emt 00:00:05]}
14. Ne4 {[%clk 00:13:17]} {[%emt 00:00:49]} Bc6 {[%clk 00:12:59]} {[%emt
00:00:24]} 15. O-O {[%clk 00:11:42]} {[%emt 00:01:40]} f5 {[%clk 00:11:23]}
{[%emt 00:01:42]} 16. Nc5 {[%clk 00:09:58]} {[%emt 00:01:49]} Qg6 {[%clk
00:11:09]} {[%emt 00:00:18]} 17. f3 {[%clk 00:09:24]} {[%emt 00:00:40]} b6
{[%clk 00:10:52]} {[%emt 00:00:22]} 18. Nb3 {[%clk 00:09:10]} {[%emt 00:00:20]}
Nxb3 {[%clk 00:10:43]} {[%emt 00:00:14]} 19. cxb3 {[%clk 00:09:11]} {[%emt
00:00:03]} f4 {[%clk 00:08:47]} {[%emt 00:02:02]} 20. g4 {[%clk 00:08:39]}
{[%emt 00:00:36]} Qd6 {[%clk 00:07:17]} {[%emt 00:01:35]} 21. Qc3 {[%clk
00:08:00]} {[%emt 00:00:44]} Bb5 {[%clk 00:06:43]} {[%emt 00:00:39]} 22. Rac1
{[%emt 00:00:25]} c5 {[%clk 00:06:40]} 23. Rfe1 {[%clk 00:07:15]} {[%emt
00:00:38]} Rfe8 {[%clk 00:06:42]} {[%emt 00:00:03]} 24. Bf1 {[%clk 00:06:54]}
{[%emt 00:00:26]} Qd4+ {[%clk 00:06:27]} {[%emt 00:00:19]} 25. Kg2 {[%clk
00:06:42]} {[%emt 00:00:17]} Rad8 {[%clk 00:06:15]} {[%emt 00:00:17]} 26. Rcd1
{[%clk 00:06:39]} {[%emt 00:00:08]} Bc6 {[%clk 00:04:21]} {[%emt 00:01:59]} 27.
Be2 {[%clk 00:05:02]} {[%emt 00:01:44]} Qd7 {[%clk 00:04:20]} {[%emt 00:00:06]}
28. Rd2 {[%clk 00:04:54]} {[%emt 00:00:12]} Qxg4+ {[%clk 00:04:16]} {[%emt
00:00:09]} 29. Kf2 {[%clk 00:04:36]} {[%emt 00:00:23]} Qh4+ {[%clk 00:04:13]}
{[%emt 00:00:07]} 30. Kg2 {[%clk 00:04:40]} {[%emt 00:00:02]} Rd6 {[%clk
00:04:08]} {[%emt 00:00:09]} 31. Rg1 {[%clk 00:04:11]} {[%emt 00:00:35]} Rg6+
{[%clk 00:04:11]} {[%emt 00:00:02]} 32. Kf1 {[%clk 00:04:14]} {[%emt 00:00:01]}
Qh3+ {[%clk 00:04:13]} {[%emt 00:00:04]} 0-1

[Event "Open NK Rapid 2025 bord 26-50"]
[Site "Helmond, Netherlands"]
[Date "2025.05.03"]
[Round "9.14"]
[White "Ruzaykyn, Oleksandr"]
[Black "Grooten, Herman"]
[Result "0-1"]
[TimeControl "15 min +5 sec increment"]
[WhiteFideId "1058134"]
[BlackFideId "1000330"]
[WhiteElo "1827"]
[BlackElo "2219"]

1. Nf3 {[%clk 00:15:08]} {[%emt 00:00:01]} Nf6 {[%clk 00:15:10]} {[%emt
00:00:01]} 2. d4 {[%clk 00:15:11]} {[%emt 00:00:02]} e6 {[%clk 00:15:07]}
{[%emt 00:00:05]} 3. Bf4 {[%clk 00:15:07]} {[%emt 00:00:09]} b6 {[%clk
00:15:11]} {[%emt 00:00:02]} 4. h3 {[%clk 00:14:41]} {[%emt 00:00:30]} Bb7
{[%clk 00:15:15]} {[%emt 00:00:02]} 5. e3 {[%clk 00:14:39]} {[%emt 00:00:07]}
g6 {[%clk 00:15:16]} {[%emt 00:00:03]} 6. c4 {[%clk 00:13:31]} {[%emt
00:01:14]} Bg7 {[%clk 00:15:12]} {[%emt 00:00:09]} 7. Nc3 {[%clk 00:13:16]}
{[%emt 00:00:20]} d6 {[%clk 00:15:10]} {[%emt 00:00:06]} 8. Rc1 {[%clk
00:12:51]} {[%emt 00:00:31]} Nbd7 {[%clk 00:15:13]} {[%emt 00:00:02]} 9. b4
{[%clk 00:12:34]} {[%emt 00:00:22]} O-O {[%clk 00:14:40]} {[%emt 00:00:38]} 10.
Be2 {[%clk 00:12:06]} {[%emt 00:00:33]} Re8 {[%clk 00:14:38]} {[%emt 00:00:07]}
11. O-O {[%clk 00:11:50]} {[%emt 00:00:21]} a5 {[%clk 00:14:18]} {[%emt
00:00:25]} 12. b5 {[%clk 00:11:34]} {[%emt 00:00:21]} e5 {[%clk 00:14:13]}
{[%emt 00:00:09]} 13. Bh2 {[%clk 00:11:31]} {[%emt 00:00:08]} Rc8 {[%clk
00:13:36]} {[%emt 00:00:42]} 14. Na4 {[%clk 00:10:31]} {[%emt 00:01:05]} Ne4
{[%clk 00:12:16]} {[%emt 00:01:25]} 15. Ne1 {[%clk 00:07:18]} {[%emt 00:03:19]}
exd4 {[%clk 00:09:58]} {[%emt 00:02:23]} 16. exd4 {[%clk 00:07:16]} {[%emt
00:00:07]} Qf6 {[%clk 00:09:58]} {[%emt 00:00:04]} 17. Nc2 {[%clk 00:05:26]}
{[%emt 00:01:55]} Bh6 {[%clk 00:07:34]} {[%emt 00:02:30]} 18. f4 {[%clk
00:05:27]} {[%emt 00:00:04]} Qe7 {[%clk 00:07:25]} {[%emt 00:00:14]} 19. Bf3
{[%clk 00:05:07]} {[%emt 00:00:25]} f5 {[%clk 00:07:22]} {[%emt 00:00:07]} 20.
g4 {[%clk 00:02:46]} {[%emt 00:02:27]} fxg4 {[%clk 00:05:43]} {[%emt 00:01:44]}
21. hxg4 {[%clk 00:02:41]} {[%emt 00:00:10]} Rf8 {[%clk 00:05:40]} {[%emt
00:00:07]} 22. g5 {[%clk 00:02:21]} {[%emt 00:00:26]} Bxg5 {[%clk 00:05:19]}
{[%emt 00:00:27]} 23. fxg5 {[%clk 00:02:03]} {[%emt 00:00:22]} Qxg5+ {[%clk
00:05:22]} {[%emt 00:00:02]} 24. Kh1 {[%clk 00:01:44]} {[%emt 00:00:24]} Rxf3
{[%clk 00:05:16]} {[%emt 00:00:11]} 25. Rxf3 {[%clk 00:00:52]} {[%emt
00:00:58]} Nf2# {[%clk 00:05:16]} {[%emt 00:00:04]} 0-1

[Event "Open NK Rapid 2025 bord 26-50"]
[Site "Helmond, Netherlands"]
[Date "2025.05.03"]
[Round "9.15"]
[White "Kools, Thomas"]
[Black "Tetova, Amir"]
[Result "1/2-1/2"]
[TimeControl "15 min +5 sec increment"]
[WhiteFideId "1054759"]
[BlackFideId "1095838"]
[WhiteElo "2094"]
[BlackElo "1759"]

1. e4 {[%clk 00:15:09]} e6 {[%clk 00:15:06]} {[%emt 00:00:04]} 2. d3 {[%clk
00:15:10]} {[%emt 00:00:04]} d5 {[%clk 00:15:10]} {[%emt 00:00:01]} 3. Qe2
{[%clk 00:15:14]} {[%emt 00:00:01]} dxe4 {[%clk 00:15:11]} {[%emt 00:00:04]} 4.
dxe4 {[%clk 00:15:17]} {[%emt 00:00:01]} e5 {[%clk 00:15:15]} {[%emt 00:00:02]}
5. Nc3 {[%clk 00:15:01]} {[%emt 00:00:20]} Nc6 {[%clk 00:15:18]} {[%emt
00:00:02]} 6. Nf3 {[%clk 00:14:39]} {[%emt 00:00:27]} Bd6 {[%clk 00:14:54]}
{[%emt 00:00:29]} 7. Bd2 {[%clk 00:14:34]} {[%emt 00:00:10]} Bg4 {[%clk
00:14:50]} {[%emt 00:00:10]} 8. O-O-O {[%clk 00:14:23]} {[%emt 00:00:16]} Qd7
{[%clk 00:13:11]} {[%emt 00:01:44]} 9. Be3 {[%clk 00:14:04]} {[%emt 00:00:23]}
O-O-O {[%clk 00:12:37]} {[%emt 00:00:39]} 10. h3 {[%clk 00:14:03]} {[%emt
00:00:07]} Bh5 {[%clk 00:12:35]} {[%emt 00:00:07]} 11. Nb5 {[%clk 00:12:42]}
{[%emt 00:01:25]} Nf6 {[%clk 00:08:44]} {[%emt 00:03:57]} 12. Qc4 {[%clk
00:12:11]} {[%emt 00:00:35]} Qe7 {[%clk 00:05:21]} {[%emt 00:03:28]} 13. Nxa7+
{[%clk 00:11:02]} {[%emt 00:01:14]} Nxa7 {[%clk 00:04:55]} {[%emt 00:00:32]} 14.
Bxa7 {[%clk 00:11:04]} {[%emt 00:00:03]} Bb4 {[%clk 00:04:17]} {[%emt
00:00:43]} 15. Be2 {[%clk 00:10:14]} {[%emt 00:00:54]} Rd6 {[%clk 00:02:38]}
{[%emt 00:01:45]} 16. Rxd6 {[%clk 00:09:45]} {[%emt 00:00:34]} Bxd6 {[%clk
00:02:37]} {[%emt 00:00:04]} 17. Be3 {[%clk 00:09:26]} {[%emt 00:00:25]} Bg6
{[%clk 00:02:27]} {[%emt 00:00:16]} 18. Qa4 {[%clk 00:09:05]} {[%emt 00:00:25]}
c6 {[%clk 00:00:47]} {[%emt 00:01:45]} 19. Nd2 {[%clk 00:08:27]} {[%emt
00:00:43]} Kd7 {[%clk 00:00:35]} {[%emt 00:00:18]} 20. Rd1 {[%clk 00:08:01]}
{[%emt 00:00:31]} Rd8 {[%clk 00:00:30]} {[%emt 00:00:10]} 21. Bb6 {[%clk
00:07:32]} {[%emt 00:00:33]} Bc7 {[%clk 00:00:13]} {[%emt 00:00:23]} 22. Bxc7
{[%clk 00:06:15]} {[%emt 00:01:22]} Kxc7 {[%clk 00:00:15]} {[%emt 00:00:03]} 23.
f3 {[%clk 00:06:11]} {[%emt 00:00:09]} Qc5 {[%clk 00:00:15]} {[%emt 00:00:05]}
24. b4 {[%clk 00:05:42]} {[%emt 00:00:33]} Qf2 {[%clk 00:00:08]} {[%emt
00:00:13]} 25. Qa5+ {[%clk 00:05:24]} {[%emt 00:00:24]} Qb6 {[%clk 00:00:07]}
{[%emt 00:00:05]} 26. Qxb6+ {[%clk 00:05:20]} {[%emt 00:00:08]} Kxb6 {[%clk
00:00:12]} {[%emt 00:00:01]} 27. Nc4+ {[%clk 00:05:21]} {[%emt 00:00:04]} Kc7
{[%clk 00:00:16]} 28. Rxd8 {[%clk 00:05:18]} {[%emt 00:00:08]} Kxd8 {[%clk
00:00:20]} 29. Nxe5 {[%clk 00:05:21]} {[%emt 00:00:02]} Nh5 {[%clk 00:00:13]}
{[%emt 00:00:12]} 30. Kd2 {[%clk 00:05:06]} {[%emt 00:00:20]} Nf4 {[%clk
00:00:07]} {[%emt 00:00:12]} 31. Bf1 {[%clk 00:05:07]} {[%emt 00:00:03]} f6
{[%clk 00:00:08]} {[%emt 00:00:04]} 32. Nxg6 {[%clk 00:04:50]} {[%emt
00:00:22]} Nxg6 {[%clk 00:00:12]} 33. a4 {[%clk 00:04:52]} {[%emt 00:00:03]}
Ne5 {[%clk 00:00:15]} {[%emt 00:00:03]} 34. c4 {[%clk 00:04:45]} {[%emt
00:00:11]} b6 {[%clk 00:00:17]} {[%emt 00:00:03]} 35. Kc3 {[%clk 00:03:58]}
{[%emt 00:00:52]} c5 {[%clk 00:00:14]} {[%emt 00:00:09]} 36. a5 {[%clk
00:03:38]} {[%emt 00:00:25]} bxa5 {[%clk 00:00:00]} {[%emt 00:00:21]} 37. bxa5
{[%clk 00:03:38]} {[%emt 00:00:04]} Nc6 {[%clk 00:00:00]} 38. a6 {[%emt
00:00:16]} Kc7 39. f4 {[%emt 00:00:37]} Kb6 {[%emt 00:00:01]} 1/2-1/2

[Event "Open NK Rapid 2025 bord 26-50"]
[Site "Helmond, Netherlands"]
[Date "2025.05.03"]
[Round "9.16"]
[White "Ten Kate, Gustav"]
[Black "Taams, Lisanne"]
[Result "0-1"]
[TimeControl "15 min +5 sec increment"]
[WhiteFideId "1095781"]
[BlackFideId "1055852"]
[WhiteElo "1800"]
[BlackElo "2078"]

1. e4 {[%clk 00:15:09]} {[%emt 00:00:01]} e6 {[%clk 00:15:08]} {[%emt
00:00:02]} 2. d4 {[%clk 00:15:12]} {[%emt 00:00:02]} d5 {[%clk 00:15:12]} 3.
Nc3 {[%clk 00:15:16]} dxe4 {[%clk 00:15:16]} {[%emt 00:00:02]} 4. Nxe4 {[%clk
00:15:20]} Nd7 {[%clk 00:15:20]} {[%emt 00:00:01]} 5. Nf3 {[%clk 00:15:23]}
Ngf6 {[%clk 00:15:24]} {[%emt 00:00:02]} 6. Nxf6+ {[%clk 00:15:24]} {[%emt
00:00:03]} Nxf6 {[%clk 00:15:27]} {[%emt 00:00:03]} 7. Bd3 {[%clk 00:14:50]}
{[%emt 00:00:38]} c5 {[%clk 00:15:30]} {[%emt 00:00:03]} 8. dxc5 {[%clk
00:14:40]} {[%emt 00:00:14]} Bxc5 {[%clk 00:15:33]} {[%emt 00:00:03]} 9. O-O
{[%clk 00:14:42]} {[%emt 00:00:02]} O-O {[%clk 00:15:34]} {[%emt 00:00:04]} 10.
Bg5 {[%clk 00:14:41]} {[%emt 00:00:06]} h6 {[%clk 00:15:18]} {[%emt 00:00:22]}
11. Bh4 {[%clk 00:14:43]} {[%emt 00:00:03]} g5 {[%clk 00:14:50]} {[%emt
00:00:33]} 12. Bg3 {[%clk 00:14:26]} {[%emt 00:00:22]} Qb6 {[%clk 00:14:27]}
{[%emt 00:00:28]} 13. Qd2 {[%clk 00:13:42]} {[%emt 00:00:49]} Nh7 {[%clk
00:13:02]} {[%emt 00:01:30]} 14. c3 {[%clk 00:13:14]} {[%emt 00:00:33]} f5
{[%clk 00:12:37]} {[%emt 00:00:30]} 15. Be5 {[%clk 00:13:04]} {[%emt 00:00:15]}
Rf7 {[%clk 00:11:48]} {[%emt 00:00:54]} 16. Rae1 {[%clk 00:12:13]} {[%emt
00:00:56]} Bd7 {[%clk 00:11:41]} {[%emt 00:00:12]} 17. h4 {[%clk 00:11:37]}
{[%emt 00:00:40]} Be7 {[%clk 00:08:37]} {[%emt 00:03:10]} 18. Bd4 {[%clk
00:10:44]} {[%emt 00:00:58]} Bc5 {[%clk 00:07:34]} {[%emt 00:01:07]} 19. Ne5
{[%clk 00:07:53]} {[%emt 00:02:57]} Bxd4 {[%clk 00:07:36]} {[%emt 00:00:04]} 20.
Nxf7 {[%clk 00:07:32]} {[%emt 00:00:26]} Kxf7 {[%clk 00:07:38]} {[%emt
00:00:02]} 21. cxd4 {[%clk 00:07:31]} {[%emt 00:00:06]} Qxd4 {[%clk 00:07:35]}
{[%emt 00:00:07]} 22. hxg5 {[%clk 00:06:41]} {[%emt 00:00:56]} Nxg5 {[%clk
00:07:27]} {[%emt 00:00:13]} 23. Qc3 {[%clk 00:05:43]} {[%emt 00:01:02]} Nf3+
{[%clk 00:07:24]} {[%emt 00:00:09]} 24. gxf3 {[%clk 00:05:19]} {[%emt
00:00:27]} Rg8+ {[%clk 00:07:27]} {[%emt 00:00:03]} 0-1